Cogmind - Beta 16 --- EXPLORER MODE // 2025.12.08 @ 11:09:00 Player: K.K.Y. Result: Destroyed by TU-XIG(R) with Subdweller Beam Cannon Performance ------------- Evolutions (0) 0 Regions Visited (3) 600 Robots Destroyed (24) 120 Value Destroyed (421) 421 Prototype IDs (14) 280 Alien Tech Used (0) 0 Bonus (0) 0 TOTAL SCORE: 1421 Bonus ------- None Cogmind --------- Core Integrity 0/250 Matter 276/300 Energy 100/100 System Corruption 0% Temperature Cool (15) Movement Flying (37) Location -10/Subcaves Parts ------- > --- POWER (1) -------- (None) > --- PROPULSION (2) --- Improved Flight Unit Improved Flight Unit > --- UTILITY (3) ------ Improved Targeting Computer > --- WEAPON (2) ------- Flak Cannon Heavy Mace > --- INVENTORY (5) ---- Improved Flight Unit Humpback Mining Laser Plasma Cutter Peak State ------------ > --- POWER ------------ Ion Engine > --- PROPULSION ------- Improved Flight Unit Improved Flight Unit > --- UTILITY ---------- Experimental Sensor Array Improved Terrain Scanner Improved Targeting Computer > --- WEAPON ----------- Shock Rifle Heavy Mace > --- INVENTORY -------- Improved Flight Unit Huge Storage Unit Flak Cannon Mining Laser Plasma Cutter [Rating: 28] Favorites ----------- Power Ion Engine Engine Ion Engine Propulsion Improved Flight Unit Hover Unit Hover Unit Flight Unit Improved Flight Unit Utility Improved Targeting Computer Device Improved Terrain Scanner Processor Improved Targeting Computer Weapon Heavy Mace Energy Gun Shock Rifle Ballistic Gun Light Assault Rifle Ballistic Cannon Flak Cannon Special Weapon Mining Laser Impact Weapon Heavy Mace Build | -11 -10 -10 -10 ------- Run | Yrd Mat Min Sub Slots Evolved 1 | . 1 . . Power . | . . . . Propulsion . | . . . . Utility 1 | . 1 . . Weapon . | . . . . Parts Attached 21 | 3 13 4 1 Power 2 | . 2 . . Engine 2 | . 2 . . Core . | . . . . Reactor . | . . . . Propulsion 5 | . 5 . . Treads . | . . . . Leg . | . . . . Wheel . | . . . . Hover 2 | . 2 . . Flight 3 | . 3 . . Utility 5 | 2 2 1 . Device 2 | 1 . 1 . Storage . | . . . . Processor 3 | 1 2 . . Hackware . | . . . . Protection . | . . . . Artifact . | . . . . Weapon 9 | 1 4 3 1 Energy Gun 3 | . 2 1 . Energy Cannon . | . . . . Ballistic Gun 1 | 1 . . . Ballistic Cannon 1 | . . . 1 Launcher . | . . . . Special Weapon 3 | . 2 1 . Impact Weapon 1 | . . 1 . Slashing Weapon . | . . . . Piercing Weapon . | . . . . Special Melee Weapon . | . . . . Unidentified Prototypes 2 | . 1 1 . Parts Lost 4 | . 1 . 3 Power 2 | . 1 . 1 Propulsion . | . . . . Utility 2 | . . . 2 Weapon . | . . . . Highest Loss Streak 2 | . 1 . 2 To Critical Strikes . | . . . . Average Backups 4 | 3 4 4 4 Power . | . . . . Propulsion . | . . 1 1 Utility . | . . 1 1 Weapon 1 | 2 2 1 1 Tool/Special . | . . . . Unused Backups 7 | 1 1 2 3 Power . | . . . . Propulsion . | . . . . Utility 4 | 1 1 . 2 Weapon 2 | . . 2 . Tool/Special 1 | . . . 1 Average Slot Usage (%) 89 | . 75 97 91 Engine 8 | . 5 12 8 Hover 1 | . 5 . . Flight 22 | . 14 25 25 Device 19 | . 12 24 20 Processor 13 | . 16 12 12 Energy Gun 8 | . 8 12 6 Ballistic Cannon 2 | . . . 5 Special Weapon 1 | . 8 . . Impact Weapon 8 | . . 8 12 Peak Build Rating 28 | 5 17 28 28 Average Rating 21 | 1 12 26 25 On Entrance 12 | . 5 17 28 Avg Prop Armor Cover (%) . | . . . . Naked Turns . | . . . . Heaviest Build 16 | 2 10 13 16 Greatest Support 12 | 3 12 10 10 Greatest Overweight (x) 1 | . 1 1 1 Average Overweight (x) . | . . . . Largest Inventory Capacity 5 | 5 5 5 5 Average Capacity 5 | 5 5 5 5 Most Carried 5 | 5 5 5 5 Average Carried 4 | 3 4 4 4 Final Capacity 5 | 5 5 5 5 Final Carried 5 | 4 5 5 5 Class Distribution -------------------- 100% | Hacker-Mutant Dominant Class ---------------- Hacker-Mutant | -10/Materials Hacker-Mutant | -10/Mines Hacker-Mutant | -10/Subcaves Resources | -11 -10 -10 -10 ----------- Run | Yrd Mat Min Sub Matter Collected 494 | 261 134 41 58 Remotely . | . . . . Salvage Created 602 | 149 172 71 210 Parts 46 | 12 13 6 15 Haulers Intercepted 2 | . 2 . . Recyclers Shooed . | . . . . Parts Field Recycled . | . . . . Retrieved Matter . | . . . . Parts Self-Destructed . | . . . . Prevented . | . . . . Parts Restored . | . . . . Kills | -11 -10 -10 -10 ------- Run | Yrd Mat Min Sub Combat Hostiles Destroyed 15 | . 4 4 7 Melee 5 | . . 1 4 Guns 6 | . 4 2 . Cannons 2 | . . . 2 Classes Destroyed 6 | 2 3 . 1 Tunneler 5 | 4 . 1 . Hauler 2 | . 2 . . Recycler 1 | 1 . . . Watcher 1 | . 1 . . Swarmer 8 | . 4 4 . Subdweller 7 | . . . 7 Best Kill Streak 3 | 3 2 2 2 Combat Bots Only 2 | . 2 2 2 Max Kills in Single Turn 1 | 1 1 1 1 Gunslinging . | . . . . Exploded . | . . . . Melee 1 | . . 1 1 Uniques/NPCs Destroyed . | . . . . Combat | -11 -10 -10 -10 -------- Run | Yrd Mat Min Sub Hostile Shots Fired 69 | . 21 13 35 Missed 22 | . 7 5 10 Hits 47 | . 14 8 25 Projectile 47 | . 14 8 25 AOE 2 | . . . 2 Critical Strikes 1 | . . 1 . Damage Taken 761 | . 141 34 586 Core 258 | . 30 13 215 Absorbed by Shields . | . . . . Ignored by Resistances 356 | . 93 24 239 Core Remaining (%) 100 | 100 . . . Volleys Fired 68 | 31 15 5 17 Largest 2 | 1 2 1 1 Hottest 145 | 20 145 50 50 Shots Fired 72 | 31 19 5 17 Gun 56 | 31 15 5 5 Cannon 12 | . . . 12 Launcher . | . . . . Special 4 | . 4 . . Kinetic 51 | 31 8 . 12 Thermal 4 | . 4 . . Explosive . | . . . . Electromagnetic 17 | . 7 5 5 Robot Hit Streak 35 | 10 12 13 35 Robot Miss Streak 2 | 1 1 1 2 Penetration Max . | . . . . Secondary Targets . | . . . . Shots Hit Robots 82 | 28 15 8 31 Core Hits 43 | 11 11 4 17 Critical Kills . | . . . . Critical Parts Destroyed 1 | . . . 1 Critical Strikes 2 | . 1 . 1 Corrupt 1 | . 1 . . Smash 1 | . . . 1 Melee Attacks 38 | . . 4 34 Impact 38 | . . 4 34 Slashing . | . . . . Piercing . | . . . . Sneak Attacks . | . . . . Combat Hostiles . | . . . . Follow-up Attacks . | . . . . Damage Inflicted 1846 | 224 266 181 1175 Guns 442 | 224 160 58 . Cannons 359 | . . . 359 Explosions 80 | . 80 . . Melee 939 | . . 123 816 Ramming 2 | . 2 . . Kinetic 647 | 224 64 . 359 Thermal 104 | . 104 . . Explosive . | . . . . Electromagnetic 154 | . 96 58 . Impact 939 | . . 123 816 Slashing . | . . . . Piercing . | . . . . Highest Corruption . | . . . . Average Corruption . | . . . . Corruption Purged . | . . . . Corruption Blocked . | . . . . Overload Shots . | . . . . Overflow Damage 163 | . 21 39 103 Projectiles . | . . . . Explosions 21 | . 21 . . Melee 142 | . . 39 103 Knockbacks 15 | . . . 15 Impact 7 | . . . 7 Kinetic 6 | . . . 6 Secondary 2 | . . . 2 Self-Inflicted Damage 24 | . 24 . . Shots 1 | . 1 . . Rammed 1 | . 1 . . Targets Rammed 1 | . 1 . . Kicked . | . . . . Crushed . | . . . . Highest Temperature 110 | . 110 16 . Average Temperature 36 | . 44 8 . Received Heat Transfer 150 | . . . 150 Siege Activations . | . . . . Martial Activations . | . . . . Shielding Activations . | . . . . Robots Disrupted . | . . . . Combat Hostiles . | . . . . Robots Corrupted 2 | . . 1 1 Combat Hostiles 2 | . . 1 1 Parts Fried 3 | . . . 3 Impact Corruptions 7 | . . 2 5 Robots Melted . | . . . . Combat Hostiles . | . . . . Parts Melted . | . . . . Heat Transferred 150 | . 150 . . Parts Sabotaged . | . . . . Parts Stolen . | . . . . Parts Stripped . | . . . . Power Chain Reactions 2 | . 2 . . Alert | -11 -10 -10 -10 ------- Run | Yrd Mat Min Sub Maximum Alert Level . | . . . . Low Security (%) 100 | 100 100 100 . Level 1 . | . . . . Level 2 . | . . . . Level 3 . | . . . . Level 4 . | . . . . Level 5 . | . . . . High Security . | . . . . Max Security . | . . . . Peak Influence 50 | 10 42 50 . Initial 1 | . . 1 . Average 6 | 2 7 7 . Influence Increases 278 | 25 148 105 . Destroy 0b10 Robot/C 160 | . 80 80 . Destroy 0b10 Robot/NC 45 | 25 15 5 . Destroy Leader 46 | . 26 20 . Destroy Structure 12 | . 12 . . Partial Spotted 15 | . 15 . . Influence Decreases 278 | 25 142 111 . Entered New Map 5 | . . 5 . Time Decay 263 | 25 132 106 . Lost Part 10 | . 10 . . Squads Dispatched 1 | . . 1 . Investigation 1 | . . 1 . Extermination . | . . . . Reinforcement . | . . . . Assault . | . . . . Garrison . | . . . . Intercept . | . . . . Searches Triggered . | . . . . Construction Impeded . | . . . . Haulers Reinforced . | . . . . Active Scanning Responses . | . . . . Cargo Convoy Interrupts . | . . . . Stealth | -11 -10 -10 -10 --------- Run | Yrd Mat Min Sub Distress Signals . | . . . . Communications Jammed . | . . . . Distress Signals . | . . . . Times Spotted 21 | . 7 4 10 Peak Tracking Total 3 | . 3 2 2 Tactical Retreats . | . . . . Traps | -11 -10 -10 -10 ------- Run | Yrd Mat Min Sub Traps Triggered 6 | . 2 . 4 Indirectly . | . . . . Trap Hack Attempts . | . . . . Triggered . | . . . . Disarmed . | . . . . Reprogrammed . | . . . . Reused . | . . . . Traps Extracted . | . . . . Installed . | . . . . Triggered . | . . . . Machines | -11 -10 -10 -10 ---------- Run | Yrd Mat Min Sub Machines Disabled . | . . . . Max in Single Turn . | . . . . Machines Repaired . | . . . . Machines Dismantled . | . . . . Machines Sabotaged . | . . . . Overloaded Fab Kills . | . . . . Hacking | -11 -10 -10 -10 --------- Run | Yrd Mat Min Sub Machines Accessed 2 | . . 1 1 Terminals . | . . . . Fabricators . | . . . . Repair Stations . | . . . . Recycling Units . | . . . . Scanalyzers . | . . . . Garrison Access . | . . . . Total Hacks 2 | . . 1 1 Successful 2 | . . 1 1 Failed . | . . . . Catastrophic . | . . . . Database Lockouts . | . . . . Manual . | . . . . Terminals . | . . . . Fabricators . | . . . . Repair Stations . | . . . . Recycling Units . | . . . . Scanalyzers . | . . . . Garrison Access . | . . . . Terminal Hacks 2 | . . 1 1 Open Door 1 | . . 1 . Proto ID Catalog 1 | . . . 1 Fabricator Hacks . | . . . . Repair Station Hacks . | . . . . Recycling Unit Hacks . | . . . . Scanalyzer . | . . . . Garrison Access Hacks . | . . . . Unauthorized Hacks . | . . . . Terminals . | . . . . Fabricators . | . . . . Repair Stations . | . . . . Recycling Units . | . . . . Scanalyzers . | . . . . Garrison Access . | . . . . Data Cores Recovered . | . . . . Used . | . . . . Hacking Detections . | . . . . Full Trace Events . | . . . . Feedback Events . | . . . . Feedback Blocked . | . . . . Robot Schematics Acquired . | . . . . Robots Built . | . . . . Authchips . | . . . . Time . | . . . . Total Robot Build Rating . | . . . . Part Schematics Acquired . | . . . . Parts Built . | . . . . Authchips . | . . . . Time . | . . . . Total Part Build Rating . | . . . . Part Studies Acquired . | . . . . Parts Repaired . | . . . . Time . | . . . . Parts Recycled . | . . . . Recycled Matter . | . . . . Retrieved Matter . | . . . . Retrieved Components . | . . . . Parts Scanalyzed . | . . . . Part Schematics Acquired . | . . . . Parts Damaged . | . . . . Bothacking | -11 -10 -10 -10 ------------ Run | Yrd Mat Min Sub Used RIF Installer . | . . . . Robots Hacked . | . . . . Non-combat . | . . . . Combat . | . . . . Robot Hacks Applied . | . . . . Relay Couplers Released . | . . . . Fabnet Peak Effective % . | . . . . Robots Rewired . | . . . . Allies Hacked . | . . . . Hacks Repelled . | . . . . Allies | -11 -10 -10 -10 -------- Run | Yrd Mat Min Sub Total Allies . | . . . . Largest Group . | . . . . Highest-Rated Group . | . . . . Highest-Rated Ally . | . . . . Total Orders . | . . . . Ally Attacks . | . . . . Total Damage . | . . . . Kills . | . . . . Allies Corrupted . | . . . . Allies Melted . | . . . . Intel | -11 -10 -10 -10 ------- Run | Yrd Mat Min Sub Active Infowar (turns) 1838 | 8 409 530 891 Optics 165 | . 156 9 . Sensors 1411 | . . 520 891 Terrain 1624 | 8 409 530 677 Robot Analysis Total . | . . . . Derelict Logs Recovered 2 | . . . 2 Drone Launches . | . . . . Drone Recoveries . | . . . . Exploration | -11 -10 -10 -10 ------------- Run | Yrd Mat Min Sub Turns Passed 2017 | 107 409 530 971 Spaces Moved 2192 | 81 505 604 1002 Core 179 | 81 98 . . Treads . | . . . . Legs . | . . . . Wheels . | . . . . Hover 79 | . 79 . . Flight 1934 | . 328 604 1002 Fastest Speed 37 | 50 37 37 37 Average Speed 67 | 50 42 79 74 Slowest Speed 107 | 50 100 107 107 Overloaded Moves . | . . . . Propulsion Burnouts . | . . . . Robots Hopped . | . . . . Potential Cave-ins . | . . . . Cave-ins Triggered . | . . . . Exploration Rate (%) 63 | 4 82 95 71 Regions Visited 3 Branch Regions 2 Pre-discovered Areas . | . . . . Known Exits Taken 3 | 1 1 1 . Unknown Exits Taken . | . . . . Scrap Searched 7 | . . 1 6 Spaces Dug 1 | . . . 1 Terrain Destroyed 13 | . 12 . 1 Melee 1 | . . . 1 Projectile 2 | . 2 . . AOE 10 | . 10 . . Terrain Rammed . | . . . . Walls Destroyed . | . . . . Machines Disabled . | . . . . Actions | -11 -10 -10 -10 --------- Run | Yrd Mat Min Sub Total 2581 | 122 672 645 1142 Wait 232 | . 127 20 85 Move 2189 | 80 504 603 1002 Hop . | . . . . Pick Up 15 | 7 5 2 1 Fast Attach 13 | 1 8 4 . Attach 6 | 2 3 . 1 Detach 3 | . 1 2 . Swap 2 | . 2 . . Drop 14 | 1 6 5 2 Fire 68 | 31 15 5 17 Melee 38 | . . 4 34 Ram 1 | . 1 . . Kick . | . . . . Crush . | . . . . Escape Stasis . | . . . . Rewire . | . . . . Trap . | . . . . Miscellaneous . | . . . . Route ------- -11/Scrapyard -10/Materials (discovered 4 exits: *Mat x2 / *Min / Sub) -10/Mines (discovered 4 exits: *Mat x2 / *Exi / *Sub) -10/Subcaves (discovered 1 exit: *Mat) History --------- Turn | Location | Event 10 | -11/Scrapyard | Identified exit to Materials 10 | -11/Scrapyard | Discovered exit to Materials (range 16) 108 | -11/Scrapyard | Entered Materials 108 | -10/Materials | Evolved 1 slot: Utility x1 183 | -10/Materials | Identified exit to Materials 183 | -10/Materials | Discovered exit to Materials (range 13) 318 | -10/Materials | Build established: Hacker-Mutant 406 | -10/Materials | Identified exit to Mines 406 | -10/Materials | Discovered exit to Mines (range 18) 477 | -10/Materials | Discovered exit to Materials (range 10) 482 | -10/Materials | Identified exit to Subcaves 482 | -10/Materials | Discovered exit to Subcaves (range 12) 517 | -10/Materials | Entered Mines 525 | -10/Mines | Found a damaged Exp. Sensor Array with a note attached 527 | -10/Mines | Found Prototype Device 527 | -10/Mines | Identified Exp. Sensor Array 588 | -10/Mines | Discovered exit to Materials (range 5) 605 | -10/Mines | Deemed a non-threat by the Exiles lab entrance 605 | -10/Mines | Identified exit to Exiles 605 | -10/Mines | Discovered exit to Exiles (range 5) 628 | -10/Mines | Met a Derelict shopkeep closing up shop 737 | -10/Mines | Discovered exit to Materials (range 11) 1041 | -10/Mines | Discovered exit to Subcaves (range 6) 1047 | -10/Mines | Entered Subcaves 1048 | -10/Subcaves | Approached by a straggling Scientist 1085 | -10/Subcaves | Visited 4L-MR0's lab 1229 | -10/Subcaves | Learned location of 1 exit from Materials 1250 | -10/Subcaves | Disturbed a concealed Subdweller 1365 | -10/Subcaves | Shifting Twisted Machinery released Sub. Power Source 1404 | -10/Subcaves | Shifting Twisted Machinery released Flamer 1509 | -10/Subcaves | Identified exit to Materials 1509 | -10/Subcaves | Discovered exit to Materials (range 14) 1718 | -10/Subcaves | Core integrity fell below 50% 1728 | -10/Subcaves | Shifting Twisted Machinery released Sub. Power Source 1729 | -10/Subcaves | Shifting Twisted Machinery released Flamer 1742 | -10/Subcaves | A swath of the cavern ceiling suddenly collapsed 1785 | -10/Subcaves | Learned Materials non-interactive machine intel 1915 | -10/Subcaves | Core integrity fell below 20% 1973 | -10/Subcaves | Shifting Twisted Machinery released Riot Gun 1975 | -10/Subcaves | Shifting Twisted Machinery released Mak. System Shield 2018 | -10/Subcaves | Destroyed by TU-XIG(R) with Subdweller Beam Cannon Last Messages --------------- 01921_ YU-BK9(R) destroyed. 01925_ The unstable cave ceiling collapses. 01936_ Destroyed Sub. Power Source. 01936_ XD-JU0(R) system corrupted by crushing effect. 01938_ Exp. Sensor Array destroyed. 01941_ K4-LTL(R) knocked back. 01942_ XD-JU0(R) affixes Scrap Shield Fragment to Scrap Shield. 01947_ K4-LTL(R) destroyed. 01949_ XD-JU0(R) knocked back. 01951_ XD-JU0(R) destroyed. 01953_ Acquired 14 matter. 01955_ Acquired 28 matter. Riot Gun falls loose from the Twisted Machinery. Mak. System Shield falls loose from the Twisted Machinery. 02011_ TU-XIG(R) knocked back. 02013_ EZ-4OS(R) knocked back. 02015_ TU-XIG(R) knocked back. Map ----- +----------------------------------------------------+ | ???????????????????????????????????????????# # | | #?????????????????????????????????????????## ## | | #?????????????????????????????????????????# ##? | | #??? ??????????????????????????????##????# !%=### | | #?????????????????????????????#### ???##[| %!# | | ??????????????????????????#""" ######"[&# | | ###?????????????????????????"""" ##""=# | | ## ##???????????????????????????"""" ### """ # | | ??###??????????????????????????????"?????# " # | | ?#?????????????????????????????????#" #?##" | | ???????????????????????????????"#### ???## " | | ??????????????????????????????""" #### " ## | | ??????????????????????????????" ""## | | ??????????????????????????????# "" | | ???????????????????#????????????# ### | | ???????????????????# ????###?## ??### ## | | ???????????????????# #### ### #?????# #### | | ???????????????????# #"#"[ ##????# ##??## | | ???????????????????# "" "" "" #????# ?????# | | ???????????????????? "" " """???### ????## | | ??????????????????????#" ""! "#????# ???## | | ????????????????????????# " #?????# #???# | | ????????????????????????# # ####??# ????# | | ??????? ???##?####### # #??# # ???## | | ?????? "#" # ##R # ##?## ##???# ! | | ??????????# R@ ## # ##?# ##???#&%! | | ???????????# # ## #### ###### #### ##??#!&] | | ?????????????????# #??###???## ## # #?###%& | | ?????????????????## "##????????# #?##== | | ??????????????????# ??????????## # ## ##?### | | ??????????????????# ???????????######## ##???# | | ?????????????????? ????????????????# #??## ! | | ?????????????????## "????????????????# = #### | | ??????????????????# "????????????????# %[ ##" | | ?????????????????? ?????????????????# ## | | ?????????????????? ?????????????????# ## | | ??????????????????""?????????????????#### ### | | ?????????????????? ????????????????????# # # | | ???????????????????????????????????????# ## | | ???????????????????????????????????????## | | ????????????????????????????????????????## # | | ?????????????????????????????????????????### ### | | ???????????????????????????????????????????# ##?? | | ???????????????????????????????????????????# #??? | | ???????????????????????????????????????????# ??? | | ??????????????????????????????????????????? ?? | | ??????????????????????????????????????????? ? | | ?????????????????????????????????????????? | | ?????????????????????????????????????????? ## # | | ????????????????????????????????????????? #??# # | +----------------------------------------------------+ Best States ------------- Heat Dissipation 25 Energy Generation 10 Energy Capacity 250 Matter Stores 300 Matter Capacity 300 Sight Range 18 Robot Scan Range 20 Terrain Scan Range 16 Terrain Scan Density 10 Resistance: KI 35 Resistance: TH 35 Resistance: EX 35 Resistance: EM 35 Resistance: I 35 Resistance: S 35 Resistance: P 35 Evasion (%) 62 Targeting Accuracy 6 Offensive Hacking 20 Item Schematics ----------------- None Robot Schematics ------------------ None Fabricated ------------ Nothing Repaired ---------- Nothing Studied --------- None Alien Tech Used ----------------- None Achievements -------------- None Challenges ------------ None Game ------ Seed ThermoelectricSeismicRigger Manual? 0 Play Time 00:20:56 Cumulative 175.8 hours Start 2025.12.08 @ 10:51:17 End 2025.12.08 @ 11:09:00 Sessions 1 Manual Loads 0 Difficulty Explorer Special Mode None Game No. 244 Rogue 0 Adventurer 0 Explorer 244 Win Type - Total 0 Types 0/0/0/0/0/0/0/0/0/0 Lore% 70 Gallery% 67 Achievement% 53 Wizard Run 0 Options --------- Layout 1 ASCII 0 Keyboard 0 Movement Mouse Keybinds 0 Fullscreen 1 Font 24/Smallcaps Map View 50x35 Zoom Use 0% Tactical HUD 1 Map Filters NONE Filters NONE Steam 1 RUN: 94638acd-6cd7-4a07-8710-2aa51d8fd063